[Event "RUS-chT Premier 2021"]
[White "Saveliev,Alexei"]
[Black "Sychev,Klementy"]
[WhiteTeam "СШОР"]
[BlackTeam "КПРФ"]
[Site "Sochi"]
[Round "1.6"]
[Annotator "ChessBase"]
[Result "0-1"]
[Date "2021.05.01"]
[WhiteElo "2358"]
[BlackElo "2572"]
[PlyCount "66"]
[TimeControl "60"]

1. e4 {[%emt 0:0:0]} c5 {[%emt 0:0:3]} 2. Nf3 {[%emt 0:0:0]} d6 {[%emt 0:0:0]} 3. d4 {[%emt 0:0:0]} cxd4 {[%emt 0:0:11]} 4. Nxd4 {[%emt 0:0:0]} Nf6 {[%emt 0:0:7]} 5. Nc3 {[%emt 0:0:4]} a6 {[%emt 0:0:55]} 6. Be2 {[%emt 0:4:9]
} e5 {[%emt 0:1:31]} 7. Nb3 {[%emt 0:0:5]} Be7 {[%emt 0:0:6]
} 8. g4 {[%emt 0:9:58]} h6 {[%emt 0:3:35]} 9. g5 {[%emt 0:6:29]} hxg5 {[%emt 0:2:6]
} 10. Bxg5 {[%emt 0:0:6]} Nc6 {[%emt 0:23:34]} 11. Qd2 {[%emt 0:12:23]
} b5 {[%emt 0:0:36]} 12. a3 {[%emt 0:12:5]} Be6 {[%emt 0:0:42]
} 13. 0-0-0 {[%emt 0:3:56]} b4 {[%emt 0:9:22]} 14. axb4 {[%emt 0:1:13]} Nxb4 {[%emt 0:3:38]} 15. f4 {[%emt 0:16:32]} Qc7 {[%emt 0:16:4]} 16. Kb1 {[%emt 0:0:0]} Rb8 {[%emt 0:3:7]} 17. f5 {[%emt 0:4:33]} Bd7 {[%emt 0:4:23]} 18. h4 {[%emt 0:2:17]} a5 {[%emt 0:1:25]} 19. Bxf6 {[%emt 0:5:39]} gxf6 {[%emt 0:0:24]
} 20. Nd5 {[%emt 0:1:47]} Nxd5 {[%emt 0:1:23]} 21. Qxd5 {[%emt 0:0:4]
} Bc6 {[%emt 0:10:30]} 22. Qc4 {[%emt 0:10:56]} Qb6 {[%emt 0:0:0]} 23. Rhg1 {[%emt 0:5:16]} a4 {[%emt 0:1:40]} 24. Rg7 {[%emt 0:0:26]} Rf8 {[%emt 0:0:58]} 25. Bh5 {[%emt 0:1:2]} axb3 {[%emt 0:2:22]} 26. Bxf7+ {[%emt 0:0:10]
} Kd8 {[%emt 0:0:5]} 27. cxb3 {[%emt 0:0:6]} Rxf7 {[%emt 0:0:0]} 28. Rxf7 {[%emt 0:0:39]} Bxe4+ {[%emt 0:2:53]} 29. Qxe4 {[%emt 0:0:0]} Qxb3 {[%emt 0:0:6]} 30. Rd2 {[%emt 0:0:54]} Qxf7 {[%emt 0:0:9]} 31. Qg4 {[%emt 0:0:14]} Ra8 {[%emt 0:0:19]} 32. h5 {[%emt 0:0:47]} Qa2+ {[%emt 0:0:21]
} 33. Kc2 {[%emt 0:0:0]} Ra4 {[%emt 0:0:47]} 0-1

[Event "RUS-chT Premier 2021"]
[White "Zakhartsov,Vladimir"]
[Black "Goryachkina,Aleksandra"]
[WhiteTeam "Школа М. Ботвинника"]
[BlackTeam "Гоголевский, 14"]
[Site "Sochi"]
[Round "1.14"]
[Annotator "ChessBase"]
[Result "1-0"]
[Date "2021.05.01"]
[WhiteElo "2486"]
[BlackElo "2593"]
[PlyCount "175"]
[TimeControl "60"]

1. d4 {[%emt 0:0:0]} Nf6 {[%emt 0:0:0]} 2. c4 {[%emt 0:0:0]} e6 {[%emt 0:0:0]} 3. Nc3 {[%emt 0:0:0]} d5 {[%emt 0:0:21]} 4. cxd5 {[%emt 0:0:11]} exd5 {[%emt 0:0:7]} 5. Bg5 {[%emt 0:0:10]} c6 {[%emt 0:0:18]} 6. e3 {[%emt 0:0:14]
} h6 {[%emt 0:0:21]} 7. Bh4 {[%emt 0:0:13]} Be7 {[%emt 0:0:47]
} 8. Qc2 {[%emt 0:0:17]} 0-0 {[%emt 0:3:4]} 9. Bd3 {[%emt 0:2:20]} Re8 {[%emt 0:1:7]
} 10. Nge2 {[%emt 0:5:22]} a5 {[%emt 0:1:16]} 11. 0-0 {[%emt 0:0:0]} Na6 {[%emt 0:0:58]} 12. a3 {[%emt 0:1:3]} Nc7 {[%emt 0:0:46]} 13. f3 {[%emt 0:12:47]} Ne6 {[%emt 0:6:41]} 14. Rad1 {[%emt 0:4:34]} b5 {[%emt 0:0:0]} 15. Bf5 {[%emt 0:7:28]} Nf8 {[%emt 0:5:52]} 16. Bd3 {[%emt 0:1:19]} Ne6 {[%emt 0:7:55]} 17. Kh1 {[%emt 0:10:10]} Ba6 {[%emt 0:3:2]} 18. Nb1 {[%emt 0:10:8]
} Qb6 {[%emt 0:3:52]} 19. b4 {[%emt 0:4:23]} Bb7 {[%emt 0:0:0]} 20. Be1 {[%emt 0:5:52]} axb4 {[%emt 0:3:39]} 21. axb4 {[%emt 0:0:2]} Ra4 {[%emt 0:3:19]} 22. Qb3 {[%emt 0:2:56]} Rea8 {[%emt 0:3:20]} 23. Bc2 {[%emt 0:1:9]
} Qd8 {[%emt 0:11:8]} 24. Nc1 {[%emt 0:3:19]} Bc8 {[%emt 0:0:0]} 25. Nd3 {[%emt 0:2:13]} Ra2 {[%emt 0:1:57]} 26. Bc3 {[%emt 0:2:8]} Bd6 {[%emt 0:1:33]} 27. Bb2 {[%emt 0:2:29]} R2a7 {[%emt 0:1:55]} 28. Qc3 {[%emt 0:2:40]
} Qe7 {[%emt 0:3:33]} 29. Nd2 {[%emt 0:5:28]} Nh5 {[%emt 0:0:0]} 30. f4 {[%emt 0:2:56]} Nd8 {[%emt 0:2:26]} 31. Nc5 {[%emt 0:1:6]} Bg4 {[%emt 0:2:11]} 32. Rde1 {[%emt 0:0:20]} Qh4 {[%emt 0:2:49]} 33. Nf3 {[%emt 0:1:32]
} Bxf3 {[%emt 0:0:26]} 34. Rxf3 {[%emt 0:0:1]} Nf6 {[%emt 0:0:0]} 35. Rh3 {[%emt 0:1:14]} Qg4 {[%emt 0:0:27]} 36. Rg3 {[%emt 0:0:43]} Qc8 {[%emt 0:0:40]} 37. Rf1 {[%emt 0:0:52]} Ne6 {[%emt 0:1:8]} 38. Bf5 {[%emt 0:1:19]
} Qe8 {[%emt 0:0:20]} 39. Bb1 {[%emt 0:1:49]} Re7 {[%emt 0:0:0]} 40. e4 {[%emt 0:0:0]} Nh5 {[%emt 0:0:0]} 41. Rgf3 {[%emt 0:8:10]} Nhxf4 {[%emt 0:7:50]} 42. Nxe6 {[%emt 0:2:20]} Nxe6 {[%emt 0:0:23]} 43. e5 {[%emt 0:0:17]
} Bb8 {[%emt 0:4:45]} 44. Bc1 {[%emt 0:3:14]} Ra4 {[%emt 0:0:0]} 45. Rg3 {[%emt 0:2:40]} Ba7 {[%emt 0:2:55]} 46. Bxh6 {[%emt 0:1:54]} g6 {[%emt 0:4:0]} 47. Be3 {[%emt 0:1:9]} c5 {[%emt 0:0:56]} 48. dxc5 {[%emt 0:3:46]
} d4 {[%emt 0:2:55]} 49. Bxd4 {[%emt 0:0:11]} Nxd4 {[%emt 0:0:0]} 50. Qxd4 {[%emt 0:0:7]} Rxe5 {[%emt 0:0:23]} 51. Qc3 {[%emt 0:2:12]} Bb8 {[%emt 0:1:59]} 52. Bc2 {[%emt 0:1:27]} Rh5 {[%emt 0:2:23]} 53. Re1 {[%emt 0:3:7]
} Re5 {[%emt 0:2:3]} 54. Rxe5 {[%emt 0:1:37]} Bxe5 {[%emt 0:0:0]} 55. Re3 {[%emt 0:0:15]} f6 {[%emt 0:0:44]} 56. Bxa4 {[%emt 0:0:21]} bxa4 {[%emt 0:0:2]} 57. Qd3 {[%emt 0:1:51]} Kg7 {[%emt 0:0:27]} 58. b5 {[%emt 0:2:16]
} a3 {[%emt 0:0:23]} 59. Qxa3 {[%emt 0:0:21]} Qxb5 {[%emt 0:0:0]} 60. Re1 {[%emt 0:0:34]} Qc4 {[%emt 0:0:59]} 61. Qe3 {[%emt 0:1:38]} Qh4 {[%emt 0:0:42]} 62. g3 {[%emt 0:0:19]} Qc4 {[%emt 0:0:25]} 63. Rd1 {[%emt 0:0:0]} Qa4 {[%emt 0:0:26]} 64. Qd3 {[%emt 0:0:42]} Kh6 {[%emt 0:0:41]} 65. Qd2+ {[%emt 0:1:42]} g5 {[%emt 0:0:6]} 66. Qd5 {[%emt 0:0:15]} Qc2 {[%emt 0:0:27]
} 67. c6 {[%emt 0:0:58]} Qe2 {[%emt 0:0:40]} 68. Qd3 {[%emt 0:0:0]} Qf2 {[%emt 0:0:52]} 69. Rf1 {[%emt 0:0:11]} Qc5 {[%emt 0:0:18]} 70. Qe4 {[%emt 0:0:25]} Qd6 {[%emt 0:0:53]} 71. Kg2 {[%emt 0:0:13]} Qd8 {[%emt 0:0:35]
} 72. Rf2 {[%emt 0:0:25]} Qd6 {[%emt 0:0:21]} 73. Rc2 {[%emt 0:0:0]} Qd8 {[%emt 0:0:6]} 74. h4 {[%emt 0:0:47]} gxh4 {[%emt 0:0:34]} 75. Qxh4+ {[%emt 0:0:8]} Kg7 {[%emt 0:0:32]} 76. Qg4+ {[%emt 0:0:11]} Kh6 {[%emt 0:0:33]
} 77. Qd7 {[%emt 0:2:32]} Qa8 {[%emt 0:0:11]} 78. Qh3+ {[%emt 0:0:19]
} Kg6 {[%emt 0:0:12]} 79. Qg4+ {[%emt 0:0:10]} Kh6 {[%emt 0:0:0]} 80. Kh3 {[%emt 0:1:9]} Qa1 {[%emt 0:0:34]} 81. Qh4+ {[%emt 0:0:13]} Kg6 {[%emt 0:0:5]} 82. Qe4+ {[%emt 0:0:8]} f5 {[%emt 0:1:38]} 83. Qf3 {[%emt 0:0:25]
} Bc7 {[%emt 0:0:14]} 84. Re2 {[%emt 0:0:30]} Kf6 {[%emt 0:0:0]} 85. Kg2 {[%emt 0:0:23]} Qa4 {[%emt 0:0:22]} 86. Qd5 {[%emt 0:0:42]} Qa6 {[%emt 0:0:43]} 87. Re6+ {[%emt 0:0:29]} Kg5 {[%emt 0:0:1]} 88. Qd2+ {[%emt 0:0:8]
} 1-0

[Event "RUS-chT Premier 2021"]
[White "Kobalia,Mikhail"]
[Black "Makarian,Rudik"]
[WhiteTeam "Гоголевский, 14"]
[BlackTeam "Школа М. Ботвинника"]
[Site "Sochi"]
[Round "1.15"]
[Annotator "ChessBase"]
[Result "1-0"]
[Date "2021.05.01"]
[WhiteElo "2587"]
[BlackElo "2468"]
[PlyCount "105"]
[TimeControl "60"]

1. e4 {[%emt 0:0:0]} e5 {[%emt 0:0:0]} 2. Nf3 {[%emt 0:0:0]} Nc6 {[%emt 0:0:0]
} 3. Bb5 {[%emt 0:0:0]} a6 {[%emt 0:0:0]} 4. Ba4 {[%emt 0:0:0]} Nf6 {[%emt 0:0:0]} 5. 0-0 {[%emt 0:0:23]} Nxe4 {[%emt 0:0:5]} 6. d4 {[%emt 0:0:22]
} b5 {[%emt 0:0:6]} 7. Bb3 {[%emt 0:0:4]} d5 {[%emt 0:0:7]} 8. dxe5 {[%emt 0:0:9]} Be6 {[%emt 0:0:5]} 9. Qe2 {[%emt 0:0:14]} Qd7 {[%emt 0:10:37]
} 10. Rd1 {[%emt 0:3:3]} Bc5 {[%emt 0:23:29]} 11. Be3 {[%emt 0:0:0]} 0-0 {[%emt 0:0:28]} 12. Nbd2 {[%emt 0:9:53]} Qe7 {[%emt 0:14:41]} 13. Nxe4 {[%emt 0:2:41]} dxe4 {[%emt 0:7:8]} 14. Bxc5 {[%emt 0:0:24]} Qxc5 {[%emt 0:0:7]
} 15. Qxe4 {[%emt 0:0:5]} h6 {[%emt 0:7:6]} 16. Bxe6 {[%emt 0:8:25]
} fxe6 {[%emt 0:0:2]} 17. Rd7 {[%emt 0:0:9]} Rf7 {[%emt 0:0:0]} 18. Rd3 {[%emt 0:2:35]} Qc4 {[%emt 0:5:19]} 19. Qxc4 {[%emt 0:12:0]} bxc4 {[%emt 0:0:2]} 20. Rc3 {[%emt 0:0:35]} Rf4 {[%emt 0:1:44]} 21. g3 {[%emt 0:9:46]
} Rxf3 {[%emt 0:1:40]} 22. Rxf3 {[%emt 0:0:9]} Nd4 {[%emt 0:0:0]} 23. Kg2 {[%emt 0:0:14]} Nxf3 {[%emt 0:2:49]} 24. Kxf3 {[%emt 0:0:16]
} Rb8 {[%emt 0:10:3]} 25. b3 {[%emt 0:1:8]} Rb5 {[%emt 0:0:3]} 26. Re1 {[%emt 0:1:58]
} cxb3 {[%emt 0:1:16]} 27. cxb3 {[%emt 0:4:57]} Rc5 {[%emt 0:0:0]} 28. Re4 {[%emt 0:1:5]} Kf7 {[%emt 0:4:10]} 29. Rc4 {[%emt 0:11:24]} Rxe5 {[%emt 0:0:12]} 30. Rxc7+ {[%emt 0:0:6]} Kf6 {[%emt 0:0:6]} 31. b4 {[%emt 0:1:51]
} a5 {[%emt 0:2:32]} 32. a3 {[%emt 0:0:18]} axb4 {[%emt 0:0:0]} 33. axb4 {[%emt 0:0:1]} Re1 {[%emt 0:0:10]} 34. b5 {[%emt 0:11:22]} Rb1 {[%emt 0:0:8]} 35. Rb7 {[%emt 0:0:2]} Rb3+ {[%emt 0:3:58]} 36. Ke4 {[%emt 0:1:53]
} Rb2 {[%emt 0:0:31]} 37. Ke3 {[%emt 0:0:9]} Rb3+ {[%emt 0:0:0]} 38. Ke4 {[%emt 0:1:36]} Rb2 {[%emt 0:0:29]} 39. Rb8 {[%emt 0:0:13]} Kg6 {[%emt 0:2:54]} 40. Ke3 {[%emt 0:0:0]} Rb3+ {[%emt 0:0:0]} 41. Kd4 {[%emt 0:12:9]
} Rf3 {[%emt 0:3:50]} 42. b6 {[%emt 0:2:55]} Rxf2 {[%emt 0:0:0]} 43. Re8 {[%emt 0:8:18]} Rb2 {[%emt 0:5:16]} 44. Rxe6+ {[%emt 0:0:46]} Kf5 {[%emt 0:9:5]} 45. Rc6 {[%emt 0:0:44]} h5 {[%emt 0:4:39]} 46. h3 {[%emt 0:1:10]
} g5 {[%emt 0:0:38]} 47. Rh6 {[%emt 0:1:37]} h4 {[%emt 0:2:4]
} 48. gxh4 {[%emt 0:1:16]} gxh4 {[%emt 0:0:4]} 49. Kc5 {[%emt 0:0:23]} Kg5 {[%emt 0:0:54]} 50. Rh7 {[%emt 0:1:28]} Rb3 {[%emt 0:2:7]} 51. b7 {[%emt 0:0:0]} Kg6 {[%emt 0:0:59]} 52. Rd7 {[%emt 0:0:21]} Kf5 {[%emt 0:1:49]} 53. Rd5+ {[%emt 0:0:24]} 1-0

[Event "RUS-chT Premier 2021"]
[White "Afanasiev,Nikita"]
[Black "Tregubov,Pavel V."]
[WhiteTeam "Школа М. Ботвинника"]
[BlackTeam "Гоголевский, 14"]
[Site "Sochi"]
[Round "1.16"]
[Annotator "ChessBase"]
[Result "1-0"]
[Date "2021.05.01"]
[WhiteElo "2529"]
[BlackElo "2560"]
[PlyCount "107"]
[TimeControl "60"]

1. Nf3 {[%emt 0:0:0]} Nf6 {[%emt 0:0:0]} 2. g3 {[%emt 0:0:0]} c5 {[%emt 0:0:28]
} 3. Bg2 {[%emt 0:0:0]} Nc6 {[%emt 0:0:19]} 4. 0-0 {[%emt 0:0:0]} e5 {[%emt 0:0:47]} 5. e4 {[%emt 0:6:22]} g6 {[%emt 0:4:55]} 6. c3 {[%emt 0:6:41]
} d6 {[%emt 0:30:11]} 7. d4 {[%emt 0:6:15]} cxd4 {[%emt 0:3:58]
} 8. cxd4 {[%emt 0:0:18]} Bg4 {[%emt 0:0:34]} 9. d5 {[%emt 0:7:21]} Nd4 {[%emt 0:0:55]
} 10. Be3 {[%emt 0:1:2]} Bg7 {[%emt 0:4:36]} 11. Nbd2 {[%emt 0:13:57]
} 0-0 {[%emt 0:13:32]} 12. Qb1 {[%emt 0:8:21]} Nd7 {[%emt 0:0:0]} 13. Bg5 {[%emt 0:7:54]} f6 {[%emt 0:9:6]} 14. Be3 {[%emt 0:4:31]} Nxf3+ {[%emt 0:5:58]} 15. Bxf3 {[%emt 0:3:24]} Bh3 {[%emt 0:1:42]} 16. Bg2 {[%emt 0:2:9]
} Bxg2 {[%emt 0:1:55]} 17. Kxg2 {[%emt 0:0:4]} f5 {[%emt 0:0:0]} 18. f3 {[%emt 0:2:34]} Rc8 {[%emt 0:1:8]} 19. Qd3 {[%emt 0:0:47]} Nc5 {[%emt 0:2:32]} 20. Bxc5 {[%emt 0:3:41]} Rxc5 {[%emt 0:1:1]} 21. Rac1 {[%emt 0:2:3]
} Rxc1 {[%emt 0:0:38]} 22. Rxc1 {[%emt 0:0:4]} Bh6 {[%emt 0:0:0]} 23. exf5 {[%emt 0:0:21]} gxf5 {[%emt 0:2:11]} 24. Rc2 {[%emt 0:5:5]
} Qd7 {[%emt 0:1:15]} 25. Nc4 {[%emt 0:0:45]} Rc8 {[%emt 0:3:16]} 26. b3 {[%emt 0:7:43]
} Rc5 {[%emt 0:0:29]} 27. a4 {[%emt 0:2:44]} a6 {[%emt 0:1:43]
} 28. Kf1 {[%emt 0:3:6]} Rc7 {[%emt 0:3:42]} 29. Nb6 {[%emt 0:0:52]} Qf7 {[%emt 0:0:33]
} 30. a5 {[%emt 0:0:45]} e4 {[%emt 0:1:4]} 31. Rxc7 {[%emt 0:0:0]} exd3 {[%emt 0:0:47]} 32. Rxf7 {[%emt 0:0:6]} Kxf7 {[%emt 0:0:4]} 33. Nc8 {[%emt 0:2:25]} Bd2 {[%emt 0:0:59]} 34. Nxd6+ {[%emt 0:0:23]} Kf6 {[%emt 0:0:14]
} 35. Nc4 {[%emt 0:0:57]} Bc3 {[%emt 0:0:43]} 36. Kf2 {[%emt 0:0:0]} Bd4+ {[%emt 0:0:7]} 37. Ke1 {[%emt 0:1:18]} Bc3+ {[%emt 0:0:5]} 38. Kd1 {[%emt 0:0:5]} h5 {[%emt 0:0:21]} 39. h3 {[%emt 0:0:21]} Ke7 {[%emt 0:1:10]
} 40. g4 {[%emt 0:0:0]} hxg4 {[%emt 0:0:0]} 41. hxg4 {[%emt 0:1:28]
} fxg4 {[%emt 0:1:18]} 42. fxg4 {[%emt 0:0:6]} Kf6 {[%emt 0:0:0]} 43. d6 {[%emt 0:7:31]} Ke6 {[%emt 0:13:12]} 44. g5 {[%emt 0:1:9]} Kd7 {[%emt 0:0:31]} 45. g6 {[%emt 0:1:33]} Ke6 {[%emt 0:0:18]} 46. Kc1 {[%emt 0:4:37]
} Kd7 {[%emt 0:4:3]} 47. Nd2 {[%emt 0:0:12]} Bg7 {[%emt 0:0:0]} 48. Ne4 {[%emt 0:2:3]} Bh6+ {[%emt 0:0:7]} 49. Kd1 {[%emt 0:0:54]} Ke6 {[%emt 0:0:14]} 50. Ng3 {[%emt 0:0:24]} Bg5 {[%emt 0:1:53]} 51. g7 {[%emt 0:3:9]
} Kf7 {[%emt 0:0:8]} 52. Nf5 {[%emt 0:0:5]} Bd8 {[%emt 0:0:0]} 53. d7 {[%emt 0:0:7]} Bxa5 {[%emt 0:0:21]} 54. Nd6+ {[%emt 0:0:5]} 1-0

[Event "RUS-chT Premier 2021"]
[White "Murzin,Volodar"]
[Black "Kukhmazov,Arsen"]
[WhiteTeam "Гоголевский, 14"]
[BlackTeam "Школа М. Ботвинника"]
[Site "Sochi"]
[Round "1.17"]
[Annotator "ChessBase"]
[Result "1/2-1/2"]
[Date "2021.05.01"]
[WhiteElo "2478"]
[BlackElo "2451"]
[PlyCount "119"]
[TimeControl "60"]

1. e4 {[%emt 0:0:0]} c6 {[%emt 0:0:0]} 2. Nf3 {[%emt 0:0:0]} d5 {[%emt 0:0:0]} 3. exd5 {[%emt 0:0:0]} cxd5 {[%emt 0:0:0]} 4. Ne5 {[%emt 0:0:0]} Nc6 {[%emt 0:0:18]} 5. Bb5 {[%emt 0:0:10]} Bd7 {[%emt 0:0:57]} 6. Bxc6 {[%emt 0:0:23]
} bxc6 {[%emt 0:12:54]} 7. d4 {[%emt 0:2:19]} e6 {[%emt 0:0:23]
} 8. 0-0 {[%emt 0:0:31]} Nf6 {[%emt 0:3:13]} 9. c4 {[%emt 0:6:52]} dxc4 {[%emt 0:4:20]
} 10. Nc3 {[%emt 0:6:51]} Be7 {[%emt 0:2:46]} 11. Qe2 {[%emt 0:0:0]} 0-0 {[%emt 0:14:17]} 12. Qxc4 {[%emt 0:10:36]} Rb8 {[%emt 0:15:48]} 13. b3 {[%emt 0:10:52]} Nd5 {[%emt 0:6:36]} 14. Ne4 {[%emt 0:8:13]} Be8 {[%emt 0:0:0]} 15. Rd1 {[%emt 0:9:58]} Qb6 {[%emt 0:10:59]} 16. Qd3 {[%emt 0:5:17]} f6 {[%emt 0:3:53]} 17. Nc4 {[%emt 0:0:21]} Qc7 {[%emt 0:0:54]} 18. Qh3 {[%emt 0:0:59]
} Bf7 {[%emt 0:7:5]} 19. Bd2 {[%emt 0:1:59]} c5 {[%emt 0:0:0]} 20. dxc5 {[%emt 0:6:21]} Bxc5 {[%emt 0:0:32]} 21. Rac1 {[%emt 0:5:57]} Bb6 {[%emt 0:4:11]} 22. Nxb6 {[%emt 0:5:9]} Qxb6 {[%emt 0:0:3]} 23. Nc5 {[%emt 0:1:4]
} Rbc8 {[%emt 0:3:33]} 24. Be3 {[%emt 0:8:14]} Rfe8 {[%emt 0:0:0]} 25. Qg3 {[%emt 0:1:9]} Bg6 {[%emt 0:0:50]} 26. h4 {[%emt 0:1:35]} Qc7 {[%emt 0:0:18]} 27. Qh3 {[%emt 0:0:42]} Qe5 {[%emt 0:0:8]} 28. Bd4 {[%emt 0:0:54]
} Nf4 {[%emt 0:1:34]} 29. Bxe5 {[%emt 0:0:11]} Nxh3+ {[%emt 0:0:0]} 30. gxh3 {[%emt 0:0:5]} fxe5 {[%emt 0:0:1]} 31. Rd7 {[%emt 0:0:38]
} a5 {[%emt 0:0:27]} 32. Rc4 {[%emt 0:0:52]} Bf5 {[%emt 0:0:16]} 33. Nb7 {[%emt 0:0:41]
} Rxc4 {[%emt 0:0:59]} 34. bxc4 {[%emt 0:0:1]} Rb8 {[%emt 0:0:0]} 35. Kh2 {[%emt 0:1:23]} Kf8 {[%emt 0:1:28]} 36. Kg3 {[%emt 0:1:14]} a4 {[%emt 0:1:1]} 37. a3 {[%emt 0:0:23]} Rc8 {[%emt 0:0:40]} 38. Nd6 {[%emt 0:0:38]
} Rc6 {[%emt 0:0:9]} 39. h5 {[%emt 0:0:25]} h6 {[%emt 0:0:22]
} 40. f3 {[%emt 0:0:0]} Bd3 {[%emt 0:0:0]} 41. Nf7 {[%emt 0:2:57]} Bxc4 {[%emt 0:9:31]
} 42. Nxe5 {[%emt 0:0:35]} Rc5 {[%emt 0:0:0]} 43. Ng6+ {[%emt 0:16:32]
} Ke8 {[%emt 0:0:0]} 44. Rxg7 {[%emt 0:0:13]} Rxh5 {[%emt 0:0:0]} 45. h4 {[%emt 0:0:14]} Rc5 {[%emt 0:4:7]} 46. Ra7 {[%emt 0:10:8]} Bb5 {[%emt 0:1:6]} 47. Nf4 {[%emt 0:2:46]} Bd7 {[%emt 0:1:6]} 48. Nd3 {[%emt 0:0:9]
} Rd5 {[%emt 0:0:22]} 49. Nf2 {[%emt 0:0:41]} Bc6 {[%emt 0:0:0]} 50. Rc7 {[%emt 0:0:26]} Bd7 {[%emt 0:7:12]} 51. Ne4 {[%emt 0:0:43]} Kd8 {[%emt 0:0:18]} 52. Rc3 {[%emt 0:0:17]} Ke7 {[%emt 0:0:30]} 53. Kf4 {[%emt 0:0:24]
} Rh5 {[%emt 0:1:0]} 54. Kg3 {[%emt 0:0:18]} Rd5 {[%emt 0:0:0]} 55. Kg4 {[%emt 0:1:5]} Rf5 {[%emt 0:2:12]} 56. Rc7 {[%emt 0:0:29]} Kd8 {[%emt 0:0:8]} 57. Rc3 {[%emt 0:0:46]} Ke7 {[%emt 0:0:7]} 58. Rc7 {[%emt 0:0:33]
} Kd8 {[%emt 0:0:4]} 59. Rc4 {[%emt 0:0:27]} Ke7 {[%emt 0:0:0]} 60. Rc7 {[%emt 0:0:15]} 1/2-1/2

[Event "RUS-chT Premier 2021"]
[White "Vetokhin,Savva"]
[Black "Demidov,Mikhail"]
[WhiteTeam "Школа М. Ботвинника"]
[BlackTeam "Гоголевский, 14"]
[Site "Sochi"]
[Round "1.18"]
[Annotator "ChessBase"]
[Result "0-1"]
[Date "2021.05.01"]
[WhiteElo "2261"]
[BlackElo "2523"]
[PlyCount "90"]
[TimeControl "60"]

1. e4 {[%emt 0:0:0]} c6 {[%emt 0:0:0]} 2. d4 {[%emt 0:0:0]} d5 {[%emt 0:0:0]} 3. e5 {[%emt 0:0:2]} Bf5 {[%emt 0:0:6]} 4. Nd2 {[%emt 0:0:15]} e6 {[%emt 0:0:10]} 5. Nb3 {[%emt 0:0:6]} Nd7 {[%emt 0:0:5]} 6. Nf3 {[%emt 0:0:0]} a6 {[%emt 0:0:6]} 7. Be2 {[%emt 0:0:39]} c5 {[%emt 0:0:6]} 8. dxc5 {[%emt 0:5:27]} Bxc5 {[%emt 0:0:8]} 9. 0-0 {[%emt 0:6:15]} Ne7 {[%emt 0:0:0]} 10. Bf4 {[%emt 0:13:11]} 0-0 {[%emt 0:2:25]} 11. Bd3 {[%emt 0:7:39]} Rc8 {[%emt 0:4:3]} 12. Qe2 {[%emt 0:1:23]} Bxd3 {[%emt 0:3:21]} 13. cxd3 {[%emt 0:0:18]
} Ng6 {[%emt 0:1:14]} 14. Bg3 {[%emt 0:0:42]} Ba7 {[%emt 0:0:0]} 15. Rac1 {[%emt 0:0:38]} Qb6 {[%emt 0:1:46]} 16. Rfe1 {[%emt 0:7:48]} Qb4 {[%emt 0:4:23]} 17. h3 {[%emt 0:11:39]} h6 {[%emt 0:12:23]} 18. Kf1 {[%emt 0:2:54]
} Qa4 {[%emt 0:4:45]} 19. Rxc8 {[%emt 0:1:45]} Rxc8 {[%emt 0:0:0]} 20. Rc1 {[%emt 0:1:47]} Rxc1+ {[%emt 0:0:40]} 21. Nxc1 {[%emt 0:0:0]} Nb8 {[%emt 0:0:13]} 22. b3 {[%emt 0:5:59]} Qa3 {[%emt 0:1:7]} 23. Qd2 {[%emt 0:1:51]} Nc6 {[%emt 0:0:29]} 24. Ne2 {[%emt 0:1:3]} d4 {[%emt 0:0:0]} 25. Qc2 {[%emt 0:2:57]} Kh7 {[%emt 0:5:37]} 26. Kg1 {[%emt 0:2:0]} Bb6 {[%emt 0:1:19]} 27. Kh2 {[%emt 0:2:7]} Nge7 {[%emt 0:1:35]} 28. Bf4 {[%emt 0:1:2]
} Nb4 {[%emt 0:4:30]} 29. Qc4 {[%emt 0:1:0]} Nec6 {[%emt 0:0:0]} 30. Nexd4 {[%emt 0:2:19]} Nxd4 {[%emt 0:9:51]} 31. Nxd4 {[%emt 0:0:4]} Nd5 {[%emt 0:1:4]} 32. Be3 {[%emt 0:7:40]} Bxd4 {[%emt 0:1:59]} 33. Qxd4 {[%emt 0:0:28]
} Qxa2 {[%emt 0:0:15]} 34. Qe4+ {[%emt 0:0:6]} Kg8 {[%emt 0:0:0]} 35. Qc4 {[%emt 0:0:1]} b5 {[%emt 0:8:24]} 36. Qc8+ {[%emt 0:1:28]} Kh7 {[%emt 0:0:9]} 37. Qf8 {[%emt 0:1:26]} Kg6 {[%emt 0:9:54]} 38. h4 {[%emt 0:2:51]
} Qe2 {[%emt 0:2:32]} 39. d4 {[%emt 0:4:17]} Qg4 {[%emt 0:0:0]} 40. Qd8 {[%emt 0:0:0]} Kh5 {[%emt 0:0:0]} 41. g3 {[%emt 0:2:11]} Nxe3 {[%emt 0:4:42]} 42. fxe3 {[%emt 0:0:12]} Qe2+ {[%emt 0:0:6]} 43. Kh3 {[%emt 0:3:56]
} Qf1+ {[%emt 0:0:9]} 44. Kh2 {[%emt 0:0:6]} Kg4 {[%emt 0:0:0]} 45. Qa8 {[%emt 0:3:47]} Qh3+ {[%emt 0:1:8]} 0-1

[Event "RUS-chT Premier 2021"]
[White "Yuffa,Daniil"]
[Black "Faizrakhmanov,Ramil"]
[WhiteTeam "Wildberries Молодёжка"]
[BlackTeam "Ладья"]
[Site "Sochi"]
[Round "1.24"]
[Annotator "ChessBase"]
[Result "0-1"]
[Date "2021.05.01"]
[WhiteElo "2584"]
[BlackElo "2477"]
[PlyCount "88"]
[TimeControl "60"]

1. d4 {[%emt 0:0:0]} Nf6 {[%emt 0:0:0]} 2. c4 {[%emt 0:0:0]} e6 {[%emt 0:0:0]} 3. Nf3 {[%emt 0:0:0]} d5 {[%emt 0:0:41]} 4. Bg5 {[%emt 0:0:43]} dxc4 {[%emt 0:2:7]} 5. e4 {[%emt 0:0:22]} c5 {[%emt 0:1:25]} 6. Nc3 {[%emt 0:6:8]
} cxd4 {[%emt 0:4:44]} 7. Nxd4 {[%emt 0:2:4]} Be7 {[%emt 0:0:0]} 8. Bxc4 {[%emt 0:2:23]} 0-0 {[%emt 0:3:29]} 9. 0-0 {[%emt 0:2:3]} a6 {[%emt 0:2:14]
} 10. a4 {[%emt 0:8:15]} b6 {[%emt 0:3:27]} 11. e5 {[%emt 0:0:0]} Nfd7 {[%emt 0:1:52]} 12. Bf4 {[%emt 0:0:36]} Bc5 {[%emt 0:26:47]} 13. b4 {[%emt 0:16:44]} Bxb4 {[%emt 0:6:2]} 14. Ne4 {[%emt 0:14:6]} Be7 {[%emt 0:0:0]} 15. Qg4 {[%emt 0:4:37]} Bb7 {[%emt 0:3:26]} 16. Bh6 {[%emt 0:2:0]} g6 {[%emt 0:0:15]} 17. Nxe6 {[%emt 0:8:32]} fxe6 {[%emt 0:3:56]} 18. Bxe6+ {[%emt 0:0:29]
} Kh8 {[%emt 0:0:42]} 19. Rad1 {[%emt 0:3:4]} Bxe4 {[%emt 0:0:0]} 20. Qxe4 {[%emt 0:3:18]} Ra7 {[%emt 0:0:12]} 21. Ba2 {[%emt 0:1:46]} Qe8 {[%emt 0:2:24]} 22. Bxf8 {[%emt 0:1:35]} Qxf8 {[%emt 0:0:39]} 23. f4 {[%emt 0:0:23]
} Nc5 {[%emt 0:0:44]} 24. Qc2 {[%emt 0:2:18]} Nc6 {[%emt 0:0:0]} 25. f5 {[%emt 0:0:8]} Nb4 {[%emt 0:2:2]} 26. Qc4 {[%emt 0:0:37]} Nxa2 {[%emt 0:1:37]} 27. f6 {[%emt 0:1:15]} Nxa4 {[%emt 0:1:16]} 28. fxe7 {[%emt 0:2:12]
} Qxe7 {[%emt 0:0:6]} 29. Kh1 {[%emt 0:1:50]} N2c3 {[%emt 0:0:0]} 30. Rd6 {[%emt 0:0:9]} Rc7 {[%emt 0:0:42]} 31. Qd4 {[%emt 0:0:37]} Nb5 {[%emt 0:0:26]} 32. Rd8+ {[%emt 0:0:50]} Kg7 {[%emt 0:0:5]} 33. Qd5 {[%emt 0:0:6]
} Qg5 {[%emt 0:0:56]} 34. Qg8+ {[%emt 0:0:42]} Kh6 {[%emt 0:0:0]} 35. Qf8+ {[%emt 0:0:27]} Rg7 {[%emt 0:0:51]} 36. e6 {[%emt 0:0:55]} Nc5 {[%emt 0:0:32]} 37. Re8 {[%emt 0:0:54]} Nc7 {[%emt 0:0:19]} 38. Rb8 {[%emt 0:0:28]
} N5xe6 {[%emt 0:0:7]} 39. Qf2 {[%emt 0:0:23]} b5 {[%emt 0:0:0]} 40. h4 {[%emt 0:0:0]} Qe5 {[%emt 0:0:0]} 41. Qf3 {[%emt 0:3:12]} Nd4 {[%emt 0:1:48]} 42. Qg4 {[%emt 0:0:37]} Nce6 {[%emt 0:1:24]} 43. Re8 {[%emt 0:0:58]
} Rc7 {[%emt 0:1:6]} 44. Rd1 {[%emt 0:2:28]} Rc3 {[%emt 0:0:0]} 0-1